Cogmind - Beta 13 @@@ ROGUE MODE // 2024.04.28 @ 23:12:40 Player: tartine Result: Destroyed by Y-45 Defender with Heavy Assault Rifle Performance ------------- Evolutions (2) 1000 Regions Visited (6) 1200 Robots Destroyed (89) 445 Value Destroyed (1872) 1872 Prototype IDs (12) 240 Alien Tech Used (0) 0 Bonus (10) 10 TOTAL SCORE: 4767 Bonus ------- High Alert Combat Kills 10 Cogmind --------- Core Integrity 0/550 Matter 300/300 Energy 95/100 System Corruption 10% Temperature Cool (9) Movement Core (250) Ox4 Location -8/Storage Parts ------- > --- POWER (1) -------- (None) > --- PROPULSION (2) --- (None) > --- UTILITY (6) ------ Medium Storage Unit Melee Analysis Suite > --- WEAPON (2) ------- Heavy Flail > --- INVENTORY (10) --- Advanced Beam Cannon Grenade Launcher Rocket Launcher Peak State ------------ > --- POWER ------------ Cooled Ion Engine > --- PROPULSION ------- Wheel > --- UTILITY ---------- Cooling System Medium Storage Unit Structural Scanner Melee Analysis Suite ECM Suite Hardened Medium Armor Plating > --- WEAPON ----------- Advanced EMP Blaster Heavy Flail > --- INVENTORY -------- Heavy Ion Engine Heat Sink Spread Laser Spread Laser Grenade Launcher Rocket Launcher [Rating: 23] Favorites ----------- Power Reinforced Ion Engine Engine Reinforced Ion Engine Power Core Light Nuclear Core Propulsion Wheel Leg Aluminum Leg Wheel Wheel Flight Unit Improved Flight Unit Utility Medium Storage Unit Device Structural Scanner Storage Medium Storage Unit Processor Melee Analysis Suite Protection Hardened Medium Armor Plating Weapon Spread Laser Energy Gun Spread Laser Energy Cannon Advanced Beam Cannon Ballistic Gun Enhanced Autogun Launcher Advanced EMP Blaster Impact Weapon Heavy Flail Build | -11 -10 -10 -9 -9 -8 -8 ------- Run | Yrd Mat Min Mat Min Mat Sto Slots Evolved 4 | . . . 2 . 2 . Power . | . . . . . . . Propulsion . | . . . . . . . Utility 4 | . . . 2 . 2 . Weapon . | . . . . . . . Parts Attached 66 | 6 2 4 7 2 2 43 Power 8 | 1 . 1 1 . . 5 Engine 7 | 1 . 1 1 . . 4 Core 1 | . . . . . . 1 Reactor . | . . . . . . . Propulsion 18 | 2 . 2 2 1 . 11 Treads . | . . . . . . . Leg 1 | . . . . . . 1 Wheel 16 | 2 . 2 2 1 . 9 Hover . | . . . . . . . Flight 1 | . . . . . . 1 Utility 14 | 1 2 . 2 1 2 6 Device 9 | . 1 . 2 1 . 5 Storage 2 | 1 1 . . . . . Processor 1 | . . . . . 1 . Hackware . | . . . . . . . Protection 2 | . . . . . 1 1 Artifact . | . . . . . . . Weapon 26 | 2 . 1 2 . . 21 Energy Gun 19 | 2 . 1 2 . . 14 Energy Cannon 1 | . . . . . . 1 Ballistic Gun 1 | . . . . . . 1 Ballistic Cannon . | . . . . . . . Launcher 1 | . . . . . . 1 Special Weapon . | . . . . . . . Impact Weapon 4 | . . . . . . 4 Slashing Weapon . | . . . . . . . Piercing Weapon . | . . . . . . . Special Melee Weapon . | . . . . . . . Unidentified Prototypes 12 | . . . . . . 12 Corrupted Parts 1 | . . . . . . 1 System Corruption 2 | . . . . . . 2 Parts Lost 27 | . . 3 1 1 . 22 Power 2 | . . . . . . 2 Propulsion 11 | . . 1 1 1 . 8 Utility 8 | . . . . . . 8 Weapon 6 | . . 2 . . . 4 Highest Loss Streak 6 | . . 3 1 1 . 6 To Critical Strikes . | . . . . . . . Average Slot Usage (%) 88 | . 98 91 95 99 97 82 Engine 9 | . 14 14 11 11 9 8 Wheel 18 | . 28 27 21 21 18 14 Device 22 | . 12 14 29 33 27 20 Storage 10 | . 14 14 11 11 9 9 Processor 5 | . . . . . 7 9 Protection 2 | . . . . . 7 3 Energy Gun 16 | . 28 20 21 22 18 12 Impact Weapon 2 | . . . . . . 5 Naked Turns . | . . . . . . . Heaviest Build 39 | 14 21 21 30 31 39 39 Greatest Support 26 | 20 20 20 20 20 20 26 Greatest Overweight (x) 9 | . 1 1 1 2 1 9 Average Overweight (x) . | . . . . 1 1 1 Largest Inventory Capacity 10 | 8 10 10 10 10 10 10 Average Capacity 9 | 7 9 10 10 10 10 10 Most Carried 9 | 4 6 7 8 6 6 9 Average Carried 5 | . 4 5 6 4 6 5 Final Capacity 10 | 8 10 10 10 10 10 10 Final Carried 7 | 4 5 7 5 6 6 3 Class Distribution -------------------- 59% | Scavenger-Mutant 26% | Mutant 13% | Infiltrator-Mutant Dominant Class ---------------- Mutant | -10/Materials Mutant | -10/Mines Scavenger-Mutant | -9/Materials Scavenger-Mutant | -9/Mines Scavenger-Mutant | -8/Materials Scavenger-Mutant | -8/Storage Resources | -11 -10 -10 -9 -9 -8 -8 ----------- Run | Yrd Mat Min Mat Min Mat Sto Matter Collected 860 | 260 13 42 70 30 20 425 Remotely . | . . . . . . . Salvage Created 2919 | 201 13 318 402 33 22 1930 Parts 158 | 15 3 17 39 6 1 77 Haulers Intercepted 3 | . . . . . . 3 Recyclers Shooed 5 | . . 2 1 . . 2 Parts Field Recycled . | . . . . . . . Retrieved Matter . | . . . . . . . Parts Self-Destructed . | . . . . . . . Prevented . | . . . . . . . Kills | -11 -10 -10 -9 -9 -8 -8 ------- Run | Yrd Mat Min Mat Min Mat Sto Combat Hostiles Destroyed 43 | . . 4 13 3 . 23 Melee 3 | . . . . . . 3 Guns 35 | . . 4 13 3 . 15 AOE 1 | . . . . . . 1 Classes Destroyed 12 | 2 1 3 4 . . 2 Worker 13 | . . 1 2 . 1 9 Builder 13 | . . 1 3 . . 9 Tunneler 5 | 5 . . . . . . Hauler 3 | . . . . . . 3 Recycler 7 | 1 . 1 . . . 5 Operator 2 | . 1 . . . . 1 Watcher 3 | . . . 2 . . 1 Swarmer 9 | . . . 6 3 . . Grunt 24 | . . 4 4 . . 16 Brawler 2 | . . . 1 . . 1 Sentry 7 | . . . 2 . . 5 Hunter 1 | . . . . . . 1 Best Kill Streak 11 | 6 1 3 8 3 1 11 Combat Bots Only 7 | . . 1 7 3 . 7 Max Kills in Single Turn 2 | 2 1 1 1 1 1 2 Gunslinging . | . . . . . . . Exploded 1 | . . . . . . 1 Melee 1 | . . . . . . 1 Uniques/NPCs Destroyed . | . . . . . . . Combat | -11 -10 -10 -9 -9 -8 -8 -------- Run | Yrd Mat Min Mat Min Mat Sto Hostile Shots Fired 232 | . . 27 28 10 . 167 Missed 46 | . . 3 5 5 . 33 Damage Taken 3066 | 12 . 328 282 46 . 2398 Core 679 | 6 . 46 64 10 . 553 Absorbed by Shields . | . . . . . . . Regen/Repaired (Parts) 194 | . . . . . . 194 Core Remaining (%) 85 | 97 . 79 . 81 . . Volleys Fired 158 | 12 1 43 30 4 5 63 Largest 2 | 2 2 2 2 2 2 2 Hottest 130 | 80 80 80 130 130 130 130 Shots Fired 271 | 24 2 51 60 8 10 116 Gun 271 | 24 2 51 60 8 10 116 Cannon . | . . . . . . . Launcher . | . . . . . . . Special . | . . . . . . . Kinetic . | . . . . . . . Thermal 158 | . . 24 60 8 10 56 Explosive . | . . . . . . . Electromagnetic 113 | 24 2 27 . . . 60 Robot Hit Streak 18 | 4 1 13 18 5 5 13 Robot Miss Streak 9 | 1 1 3 9 4 8 8 Penetration Max . | . . . . . . . Secondary Targets 7 | . . 1 2 1 . 3 Max Gunslinging Chain 1 | . . 1 1 1 . 1 Shots Hit Robots 250 | 16 1 36 51 8 9 129 Core Hits 209 | 6 1 14 71 8 7 102 Critical Kills 2 | . . . . . . 2 Critical Parts Destroyed 5 | . . . . . . 5 Critical Strikes 7 | . . . . . . 7 Smash 7 | . . . . . . 7 Melee Attacks 62 | . . . . . . 62 Impact 62 | . . . . . . 62 Slashing . | . . . . . . . Piercing . | . . . . . . . Sneak Attacks 14 | . . . . . . 14 Combat Hostiles . | . . . . . . . Follow-up Attacks . | . . . . . . . Damage Inflicted 6255 | 307 16 542 675 86 83 4546 Guns 3067 | 205 16 459 675 86 83 1543 Cannons . | . . . . . . . Explosions 515 | 102 . 76 . . . 337 Melee 2666 | . . . . . . 2666 Ramming 7 | . . 7 . . . . Kinetic . | . . . . . . . Thermal 2144 | 102 . 294 675 86 83 904 Explosive . | . . . . . . . Electromagnetic 1438 | 205 16 241 . . . 976 Impact 2666 | . . . . . . 2666 Slashing . | . . . . . . . Piercing . | . . . . . . . Highest Corruption 10 | . . . 1 1 . 10 Average Corruption 4 | . . . 1 1 . 6 Corruption Purged . | . . . . . . . Corruption Blocked . | . . . . . . . Effects 33 | . . . . 4 . 29 Message Errors 10 | . . . . 2 . 8 Matter Fused 9 | . . . . 1 . 8 Heat Flow Errors 1 | . . . . . . 1 Energy Discharges 2 | . . . . . . 2 Data Loss (minor) 5 | . . . . . . 5 Data Loss (major) 3 | . . . . . . 3 Misfires 1 | . . . . . . 1 Alerts 1 | . . . . 1 . . Weapon Failures 1 | . . . . . . 1 Overload Shots . | . . . . . . . Overflow Damage 1181 | 16 . . . . . 1165 Projectiles . | . . . . . . . Explosions 51 | 16 . . . . . 35 Melee 1130 | . . . . . . 1130 Knockbacks 8 | . . . . . . 8 Impact 8 | . . . . . . 8 Kinetic . | . . . . . . . Secondary . | . . . . . . . Self-Inflicted Damage 177 | 13 . 3 . . . 161 Shots 5 | 1 . . . . . 4 Rammed 2 | . . 2 . . . . Targets Rammed 2 | . . 2 . . . . Kicked . | . . . . . . . Crushed . | . . . . . . . Highest Temperature 348 | 120 18 154 348 168 24 214 Average Temperature 71 | 44 12 53 133 88 10 40 Received Heat Transfer 1233 | . . 186 39 . . 1008 Effects 1 | . . . 1 . . . Shutdowns 1 | . . . 1 . . . Siege Activations . | . . . . . . . Robots Corrupted . | . . . . . . . Combat Hostiles . | . . . . . . . Parts Fried 22 | 1 . 1 . . . 20 Impact Corruptions 38 | . . . . . . 38 Robots Melted . | . . . . . . . Combat Hostiles . | . . . . . . . Parts Melted 1 | . . 1 . . . . Heat Transferred 2900 | 150 . 575 845 105 100 1125 Parts Sabotaged . | . . . . . . . Parts Stolen . | . . . . . . . Parts Stripped . | . . . . . . . Power Chain Reactions 8 | 2 . 1 . . . 5 Alert | -11 -10 -10 -9 -9 -8 -8 ------- Run | Yrd Mat Min Mat Min Mat Sto Peak Influence 468 | 30 48 133 468 242 129 388 Initial 182 | . 19 18 51 182 94 53 Average 158 | 9 30 78 286 240 115 149 Maximum Alert Level 2 | . . . 2 1 . 1 Low Security (%) 61 | 100 100 100 27 2 100 67 Level 1 32 | . . . 31 97 . 32 Level 2 5 | . . . 40 . . . Level 3 . | . . . . . . . Level 4 . | . . . . . . . Level 5 . | . . . . . . . High Security . | . . . . . . . Max Security . | . . . . . . . Squads Dispatched 8 | . . . 3 . . 5 Investigation 3 | . . . 1 . . 2 Extermination . | . . . . . . . Reinforcement 5 | . . . 2 . . 3 Assault . | . . . . . . . Garrison . | . . . . . . . Intercept . | . . . . . . . Searches Triggered . | . . . . . . . Construction Impeded 2 | . . . . . . 2 Haulers Reinforced . | . . . . . . . Active Scanning Responses . | . . . . . . . Cargo Convoy Interrupts . | . . . . . . . Stealth | -11 -10 -10 -9 -9 -8 -8 --------- Run | Yrd Mat Min Mat Min Mat Sto Distress Signals 5 | . . . 2 . . 3 Communications Jammed . | . . . . . . . Distress Signals . | . . . . . . . Times Spotted 71 | . 3 7 22 5 2 32 Peak Tracking Total 8 | . 2 2 8 3 2 7 Tactical Retreats 13 | . . 4 3 2 . 4 Traps | -11 -10 -10 -9 -9 -8 -8 ------- Run | Yrd Mat Min Mat Min Mat Sto Traps Triggered 6 | . . . 2 . . 4 Indirectly . | . . . . . . . Trap Hack Attempts . | . . . . . . . Triggered . | . . . . . . . Disarmed . | . . . . . . . Reprogrammed . | . . . . . . . Reused . | . . . . . . . Traps Extracted . | . . . . . . . Installed . | . . . . . . . Triggered . | . . . . . . . Machines | -11 -10 -10 -9 -9 -8 -8 ---------- Run | Yrd Mat Min Mat Min Mat Sto Machines Disabled 4 | . . 1 . . . 3 Max in Single Turn 1 | . . 1 . . . 1 Machines Repaired . | . . . . . . . Machines Dismantled . | . . . . . . . Machines Sabotaged . | . . . . . . . Overloaded Fab Kills . | . . . . . . . Hacking | -11 -10 -10 -9 -9 -8 -8 --------- Run | Yrd Mat Min Mat Min Mat Sto Machines Accessed 16 | . 2 . 4 . 1 9 Terminals 14 | . 2 . 4 . 1 7 Fabricators . | . . . . . . . Repair Stations 2 | . . . . . . 2 Recycling Units . | . . . . . . . Scanalyzers . | . . . . . . . Garrison Access . | . . . . . . . Total Hacks 42 | . 3 . 5 . 3 31 Successful 21 | . 3 . 5 . 1 12 Failed 21 | . . . . . 2 19 Catastrophic 3 | . . . . . . 3 Database Lockouts . | . . . . . . . Manual 20 | . 2 . 4 . . 14 Terminals 33 | . 3 . 5 . 3 22 Fabricators . | . . . . . . . Repair Stations 9 | . . . . . . 9 Recycling Units . | . . . . . . . Scanalyzers . | . . . . . . . Garrison Access . | . . . . . . . Terminal Hacks 4 | . 1 . 1 . 1 1 Open Door 1 | . . . . . . 1 Branch Access Points 3 | . 1 . 1 . 1 . Fabricator Hacks . | . . . . . . . Repair Station Hacks 7 | . . . . . . 7 Scan Component 4 | . . . . . . 4 Repair 3 | . . . . . . 3 Recycling Unit Hacks . | . . . . . . . Scanalyzer . | . . . . . . . Garrison Access Hacks . | . . . . . . . Unauthorized Hacks 10 | . 2 . 4 . . 4 Terminals 10 | . 2 . 4 . . 4 Botnet 10 | . 2 . 4 . . 4 Fabricators . | . . . . . . . Repair Stations . | . . . . . . . Recycling Units . | . . . . . . . Scanalyzers . | . . . . . . . Garrison Access . | . . . . . . . Data Cores Recovered 1 | . 1 . . . . . Used 1 | . 1 . . . . . Hacking Detections 12 | . 2 . 1 . 1 8 Full Trace Events 2 | . . . . . . 2 Feedback Events 1 | . . . . . . 1 Corruption 1 | . . . . . . 1 Feedback Blocked . | . . . . . . . Robot Schematics Acquired . | . . . . . . . Robots Built . | . . . . . . . Authchips . | . . . . . . . Time . | . . . . . . . Total Robot Build Rating . | . . . . . . . Part Schematics Acquired . | . . . . . . . Parts Built . | . . . . . . . Authchips . | . . . . . . . Time . | . . . . . . . Total Part Build Rating . | . . . . . . . Parts Repaired 3 | . . . . . . 3 Time 109 | . . . . . . 109 Parts Recycled . | . . . . . . . Recycled Matter . | . . . . . . . Retrieved Matter . | . . . . . . . Retrieved Components . | . . . . . . . Parts Scanalyzed . | . . . . . . . Part Schematics Acquired . | . . . . . . . Parts Damaged . | . . . . . . . Bothacking | -11 -10 -10 -9 -9 -8 -8 ------------ Run | Yrd Mat Min Mat Min Mat Sto Used RIF Installer . | . . . . . . . Robots Hacked . | . . . . . . . Non-combat . | . . . . . . . Combat . | . . . . . . . Robot Hacks Applied . | . . . . . . . Relay Couplers Released . | . . . . . . . Fabnet Peak Effective % . | . . . . . . . Robots Rewired . | . . . . . . . Allies Hacked . | . . . . . . . Hacks Repelled . | . . . . . . . Allies | -11 -10 -10 -9 -9 -8 -8 -------- Run | Yrd Mat Min Mat Min Mat Sto Total Allies . | . . . . . . . Largest Group . | . . . . . . . Highest-Rated Group . | . . . . . . . Highest-Rated Ally . | . . . . . . . Total Orders . | . . . . . . . Ally Attacks . | . . . . . . . Total Damage . | . . . . . . . Kills . | . . . . . . . Allies Corrupted . | . . . . . . . Allies Melted . | . . . . . . . Intel | -11 -10 -10 -9 -9 -8 -8 ------- Run | Yrd Mat Min Mat Min Mat Sto Robot Analysis Total . | . . . . . . . Derelict Logs Recovered 3 | . . 2 . 1 . . Drone Launches . | . . . . . . . Drone Recoveries . | . . . . . . . Exploration | -11 -10 -10 -9 -9 -8 -8 ------------- Run | Yrd Mat Min Mat Min Mat Sto Turns Passed 2576 | 94 108 308 347 297 71 1351 Spaces Moved 1535 | 58 113 226 217 296 56 569 Core 4 | 3 . . . . . 1 Treads . | . . . . . . . Legs 5 | . . . . . . 5 Wheels 1526 | 55 113 226 217 296 56 563 Hover . | . . . . . . . Flight . | . . . . . . . Fastest Speed 50 | 50 80 80 80 95 95 80 Average Speed 95 | 78 89 88 92 95 95 100 Slowest Speed 500 | 80 95 95 95 110 95 500 Overloaded Moves . | . . . . . . . Propulsion Burnouts . | . . . . . . . Robots Hopped . | . . . . . . . Cave-ins Triggered . | . . . . . . . Exploration Rate (%) 37 | 4 22 51 29 79 11 67 Regions Visited 6 Branch Regions 3 Pre-discovered Areas 2 | . . 1 . . . 1 Known Exits Taken 3 | . 1 . 1 . 1 . Unknown Exits Taken 3 | 1 . 1 . 1 . . Scrap Searched 2 | . . 1 . 1 . . Spaces Dug 7 | . . . . . . 7 Terrain Destroyed 29 | 4 . . . . . 25 Melee 7 | . . . . . . 7 Projectile . | . . . . . . . AOE 22 | 4 . . . . . 18 Terrain Rammed . | . . . . . . . Walls Destroyed . | . . . . . . . Machines Disabled . | . . . . . . . Actions | -11 -10 -10 -9 -9 -8 -8 --------- Run | Yrd Mat Min Mat Min Mat Sto Total 2276 | 79 117 281 301 302 62 1134 Wait 405 | . . . 42 . . 363 Move 1529 | 57 112 225 216 295 55 569 Hop . | . . . . . . . Pick Up 25 | 4 1 5 2 1 . 12 Fast Attach 37 | 6 1 1 3 . 2 24 Attach 15 | . . 1 2 1 . 11 Detach 2 | . . . . . . 2 Swap 14 | . 1 2 2 1 . 8 Drop 27 | . 1 2 4 . . 20 Fire 158 | 12 1 43 30 4 5 63 Melee 62 | . . . . . . 62 Ram 2 | . . 2 . . . . Kick . | . . . . . . . Crush . | . . . . . . . Escape Stasis . | . . . . . . . Rewire . | . . . . . . . Trap . | . . . . . . . Miscellaneous . | . . . . . . . Route ------- -11/Scrapyard -10/Materials -10/Mines -9/Materials (discovered 3 exits: *Mat / *Min x2) -9/Mines -8/Materials (discovered 3 exits: Fac / *Sto x2) -8/Storage History --------- Turn | Location | Event 14 | -11/Scrapyard | Discovered new exit (range 16) 95 | -11/Scrapyard | Entered Materials 165 | -10/Materials | Identified exit to Mines 203 | -10/Materials | Entered Mines 251 | -10/Mines | Learned location of Zion (-6) 266 | -10/Mines | Received a Rocket Launcher from a helpful Derelict 308 | -10/Mines | Build established: Mutant 419 | -10/Mines | Lost 3 parts (1n2w) 468 | -10/Mines | Learned 4 Materials zone layouts 497 | -10/Mines | Discovered new exit (range 16) 511 | -10/Mines | Entered Materials 511 | -9/Materials | Evolved 2 slots: Utility x2 512 | -9/Materials | Identified exit to Mines 638 | -9/Materials | Destroyed 7 combat bots 640 | -9/Materials | Discovered new exit (range 16) 858 | -9/Materials | Entered Mines 934 | -9/Mines | Build established: Scavenger-Mutant 984 | -9/Mines | Learned 2 Materials zone layouts 1133 | -9/Mines | Discovered new exit (range 11) 1155 | -9/Mines | Entered Materials 1155 | -8/Materials | Evolved 2 slots: Utility x2 1155 | -8/Materials | Discovered new exit (range 15) 1156 | -8/Materials | Identified exit to Factory 1197 | -8/Materials | Identified exit to Storage 1226 | -8/Materials | Entered Storage 1278 | -8/Storage | Learned location of Armory (-3) 1694 | -8/Storage | Repaired Spread Laser 1722 | -8/Storage | Lost 5 parts (1n3u1w) 1871 | -8/Storage | Repaired Wheel 1923 | -8/Storage | Repaired Cld. Ion Engine 2293 | -8/Storage | Core integrity fell below 50% 2331 | -8/Storage | Destroyed 7 combat bots 2335 | -8/Storage | Lost 5 parts (1p2n1u1w) 2461 | -8/Storage | Lost 3 parts (1n1u1w) 2488 | -8/Storage | System corruption reached 10% 2542 | -8/Storage | Core integrity fell below 20% 2577 | -8/Storage | Destroyed by Y-45 Defender with Heavy Assault Rifle Last Messages --------------- 02552_ K-01 Serf collects debris. 02552_ G-47 Trooper suffers critical hit (Smash). 02552_ Destroyed Imp. Heat Sink. 02552_ G-47 Trooper system corrupted by crushing effect. 02553_ G-47 Trooper system terminally corrupted. 02554_ Heat Sink destroyed. 02556_ Critical hit (Burn: +37). 02557_ K-01 Serf collects debris. 02560_ Hvy. EM Shotgun destroyed. 02561_ K-01 Serf collects debris. 02570_ PE9 L=8